bitfinex-derivatives/quotes_ETHF0:USTF0_20250910
["timestamp","ask_amount","ask_price","bid_price","bid_amount"]
[1757521573361,0.4874,4368.0,4367.1,0.3132]
[1757521573554,3.2078,4367.5,4367.0,0.1203]
[1757521573853,0.246,4367.4,4367.0,0.1203]
[1757521574053,0.246,4367.3,4367.2,0.41205]
[1757521574252,0.1203,4366.0,4363.5,3.2078]
[1757521574451,3.2078,4365.4,4364.6,0.3132]
[1757521574661,3.2078,4365.4,4365.1,0.3132]
[1757521574957,0.285,4365.7,4365.1,0.3132]
[1757521575162,0.6035,4365.8,4365.1,0.3132]
[1757521575460,3.5263,4365.4,4365.1,0.3132]
[1757521575852,3.2078,4365.4,4365.1,0.3132]
[1757521576055,3.2078,4365.4,4365.1,0.72543]
[1757521576254,3.2078,4365.4,4365.1,0.3132]
[1757521576753,3.2078,4365.4,4365.0,0.1203]
[1757521576958,3.2078,4365.4,4365.1,0.3132]
[1757521577160,3.2078,4365.4,4365.2,0.3132]
[1757521577359,3.2078,4365.4,4365.3,0.72542]
[1757521577560,3.2078,4365.9,4365.8,0.3132]
[1757521578962,33.045,4367.0,4366.1,0.41214]
[1757521578963,3.2078,4366.4,4366.1,0.41214]
[1757521579261,3.2078,4367.0,4366.3,0.3132]
[1757521579460,3.2078,4367.0,4366.5,0.1203]
[1757521579763,3.2078,4367.0,4366.9,0.41207]
[1757521579958,3.2078,4367.6,4366.9,0.3132]
[1757521580155,3.2078,4367.6,4367.0,0.1203]
[1757521580352,3.2078,4367.6,4367.0,0.4335]
[1757521580564,3.2078,4367.6,4367.0,0.84556]
[1757521580866,3.2078,4367.6,4367.2,0.41203]
[1757521581064,3.2078,4367.6,4367.1,0.41204]
[1757521581264,3.2078,4367.6,4367.5,0.4335]
[1757521582164,3.2078,4368.4,4367.6,0.3132]
[1757521582362,3.2078,4368.4,4367.6,1.03001]
[1757521582566,3.2078,4368.9,4368.7,0.4119]
[1757521582862,3.2078,4368.9,4368.8,0.3132]
[1757521583063,3.5263,4368.9,4368.7,0.41189]
[1757521583461,3.5263,4368.9,4368.8,0.0844]
[1757521583462,3.2078,4368.9,4368.8,0.0844]
[1757521584765,0.3185,4369.4,4369.3,0.18324]
[1757521586073,0.3185,4369.9,4369.8,0.41179]
[1757521586363,3.2995,4370.0,4369.8,0.41179]
[1757521586364,3.2078,4370.0,4369.9,0.3132]
[1757521586561,3.5263,4370.0,4369.9,0.3132]
[1757521587065,3.5263,4370.0,4369.8,0.41179]
[1757521587255,0.2934,4369.9,4369.8,0.41179]
[1757521588265,0.2934,4369.9,4369.3,0.281]
[1757521588463,3.3329,4370.0,4369.3,0.69284]
[1757521588763,3.2078,4369.4,4368.9,0.6036]
[1757521589568,3.2078,4369.4,4368.9,0.3226]
[1757521590064,0.2934,4369.3,4368.9,0.73448]
[1757521590268,0.2934,4369.3,4369.2,0.73445]
[1757521590460,3.2078,4369.4,4369.2,0.41185]
[1757521590656,3.2078,4370.0,4369.9,0.3226]
[1757521591064,3.5012,4370.0,4369.8,0.41179]
[1757521591263,3.2078,4370.0,4369.8,0.41179]
[1757521591464,0.2934,4369.9,4369.8,0.41179]
[1757521591967,3.2078,4370.0,4369.9,0.3226]
[1757521592456,3.5012,4370.0,4369.9,0.3226]
[1757521592659,3.2078,4370.0,4369.7,0.4118]
[1757521592861,3.2078,4370.0,4369.8,0.41179]
[1757521593064,3.2078,4370.0,4369.9,0.3226]
[1757521598170,0.2934,4370.4,4370.3,0.41175]
[1757521598373,0.2934,4370.4,4370.3,0.73435]
[1757521598866,3.2078,4370.5,4370.4,0.73434]
[1757521599768,3.2078,4370.5,4369.8,0.3226]
[1757521599769,0.2934,4370.4,4369.8,0.3226]
[1757521599974,0.2934,4370.4,4369.9,0.277]
[1757521600272,0.2934,4370.4,4370.3,0.41175]
[1757521600666,0.2934,4370.4,4369.9,0.277]
[1757521600970,3.3329,4370.5,4370.4,0.41174]
[1757521601567,3.2078,4370.5,4370.4,0.73434]
[1757521602272,0.22883,4370.4,4368.5,0.1205]
[1757521602475,3.2078,4368.6,4368.0,0.1205]
[1757521602672,3.2078,4368.1,4368.0,0.1205]
[1757521602875,3.2078,4368.1,4368.0,0.4431]
[1757521603170,3.2078,4368.6,4368.5,0.4431]
[1757521604470,3.4918,4368.6,4368.5,0.4431]
[1757521604979,3.2078,4368.6,4368.5,0.4431]
[1757521605170,3.4918,4368.6,4368.5,0.4431]
[1757521606472,3.2078,4368.6,4368.5,0.4431]
[1757521606677,3.4908,4368.6,4368.5,0.4431]
[1757521607771,3.2078,4368.6,4368.5,4.4431]
[1757521607971,3.2078,4369.3,4369.1,0.3226]
[1757521608167,3.2078,4369.3,4369.2,0.3226]
[1757521608375,3.2078,4369.3,4369.2,3.36477975]
[1757521608573,3.2078,4370.1,4369.2,7.04217975]
[1757521608775,3.2078,4370.1,4370.0,0.4431]
[1757521610676,3.4898,4370.7,4370.5,0.1205]
[1757521610875,3.2078,4370.7,4370.6,0.3226]
[1757521618378,0.279,4371.2,4371.1,0.3087]
[1757521618781,3.2078,4371.4,4371.1,0.3087]
[1757521618982,0.279,4371.3,4371.0,0.1221]
[1757521619387,0.279,4371.3,4371.1,0.3087]
[1757521620282,3.4858,4371.4,4371.3,0.3087]
[1757521622088,3.2078,4371.4,4371.3,0.3087]
[1757521624790,3.2078,4371.4,4371.0,0.4308]
[1757521624791,7.2078,4371.4,4371.0,0.4308]
[1757521624986,0.277,4371.3,4371.0,0.4308]
[1757521625187,3.2078,4371.4,4371.0,0.1221]
[1757521625389,0.277,4371.3,4371.0,0.1221]
[1757521625888,0.277,4371.2,4371.1,0.3087]
[1757521626592,3.2078,4371.4,4371.1,0.3087]
[1757521626882,0.276,4371.3,4371.1,0.3087]
[1757521627487,0.276,4371.3,4371.0,0.1221]
[1757521627682,0.276,4371.3,4371.1,0.3087]
[1757521627888,3.2078,4371.4,4371.1,0.3087]
[1757521628190,3.2078,4371.4,4371.2,0.41166]
[1757521628380,3.2078,4371.4,4371.3,0.72035]
[1757521628685,3.2078,4371.4,4371.3,0.3087]
[1757521629590,7.45936797,4371.4,4371.1,0.3087]
[1757521629791,0.52656263,4371.3,4371.1,0.3087]
[1757521629992,0.275,4371.3,4371.1,0.3087]
[1757521630192,0.275,4371.2,4371.1,0.3087]
[1757521633591,0.275,4371.2,4371.0,0.1221]
[1757521633592,4.75535124,4371.2,4371.0,0.1221]
[1757521633895,4.48036124,4371.1,4370.0,0.1205]
[1757521634097,3.2078,4370.1,4370.0,0.4292]
[1757521634294,3.4818,4370.1,4370.0,0.4292]
[1757521635293,3.73338707,4370.1,4370.0,0.4292]
[1757521635683,3.4818,4370.1,4370.0,0.4292]
[1757521638389,3.4798,4370.1,4370.0,0.4292]
[1757521638794,3.2078,4370.1,4370.0,0.4292]
[1757521638991,3.2078,4370.1,4370.0,0.8425]
[1757521639193,3.4798,4370.1,4370.0,0.8425]
[1757521639397,3.4798,4370.1,4370.0,0.4292]
[1757521640500,7.4798,4370.1,4370.0,0.1205]
[1757521640888,7.4798,4370.1,4369.6,0.3087]
[1757521641094,0.24150573,4370.0,4369.6,0.3087]
[1757521641296,3.4798,4370.1,4369.6,0.3087]
[1757521641297,0.271,4369.9,4369.6,0.3087]
[1757521642205,0.271,4369.9,4369.5,0.1205]
[1757521642501,3.2078,4369.6,4369.5,0.1205]
[1757521642707,3.4788,4369.6,4369.5,0.1205]
[1757521642897,3.4788,4369.6,4369.5,0.4292]
[1757521644401,3.2078,4369.6,4369.5,0.6276]
[1757521644600,3.4778,4369.6,4369.5,0.8425]
[1757521644901,3.2078,4369.6,4369.5,0.8425]
[1757521645102,3.4778,4369.6,4369.5,0.6276]
[1757521645505,3.4778,4369.6,4369.5,0.4292]
[1757521645703,3.2078,4369.6,4369.5,0.8425]
[1757521645894,3.4778,4369.6,4369.5,0.8425]
[1757521646602,3.4778,4369.6,4369.5,0.4292]
[1757521647896,3.4778,4369.6,4369.5,0.1205]
[1757521648603,3.4778,4369.6,4369.5,0.4379]
[1757521649295,7.4778,4369.6,4369.5,0.1205]
[1757521649502,7.4778,4369.6,4369.0,0.1221]
[1757521649702,3.2078,4369.1,4369.0,0.4395]
[1757521650003,3.4768,4369.1,4369.0,0.4395]
[1757521650302,3.4768,4369.1,4369.0,0.1221]
[1757521650303,7.4768,4369.1,4369.0,0.1221]
[1757521650500,7.4768,4369.1,4368.5,0.1221]
[1757521650702,3.2078,4368.6,4368.5,0.1221]
[1757521651004,3.2078,4368.6,4368.5,0.4395]
[1757521651005,3.4768,4368.6,4368.5,0.4395]
[1757521651406,3.2078,4368.6,4368.5,0.6475]
[1757521651601,3.4768,4368.6,4368.5,0.8465]
[1757521653705,3.2078,4368.6,4368.5,0.8465]
[1757521655408,3.2078,4368.6,4368.5,4.8465]
[1757521657306,32.962,4369.8,4369.0,0.1178]
[1757521657307,3.2078,4369.1,4369.0,0.1178]
[1757521657505,3.4748,4369.1,4369.0,0.8422]
[1757521661312,3.2078,4369.1,4369.0,5.25407]
[1757521661508,3.2078,4369.9,4369.8,0.7244]
[1757521661710,3.4738,4369.9,4369.8,0.7244]
[1757521663711,3.2078,4369.9,4369.8,0.7244]
[1757521664018,3.4738,4369.9,4369.8,0.7244]
[1757521666407,3.4738,4369.9,4369.8,1.13619]
[1757521666608,0.266,4369.9,4369.8,1.13619]
[1757521667018,3.2078,4370.4,4369.8,1.13619]
[1757521667317,3.2078,4370.4,4370.3,1.13615]
[1757521667508,3.2078,4370.9,4370.8,0.7244]
[1757521667711,3.4718,4370.9,4370.8,0.7244]
[1757521668912,3.2078,4370.9,4370.8,0.7244]
[1757521669124,3.2078,4370.9,4370.5,0.1178]
[1757521669125,3.4718,4371.4,4371.3,0.5254]
[1757521671626,3.4708,4371.4,4371.3,0.7244]
[1757521672126,3.2078,4371.4,4371.3,0.7244]
[1757521672513,3.4708,4371.4,4371.3,0.7244]
[1757521673025,3.2078,4371.4,4371.3,0.7244]
[1757521673626,3.2078,4371.9,4371.8,0.5254]
[1757521673918,3.4708,4371.9,4371.8,0.3174]
[1757521678637,3.4688,4371.9,4371.8,0.3174]
[1757521678833,3.4688,4371.9,4371.8,0.5234]
[1757521679235,3.2078,4371.9,4371.8,1.13941]
[1757521679439,3.4688,4371.9,4371.8,0.7278]
[1757521680435,3.2078,4371.9,4371.8,0.7278]
[1757521680739,3.4688,4371.9,4371.8,0.7278]
[1757521680942,3.2078,4372.4,4372.3,0.206]
[1757521681141,3.4688,4372.4,4372.3,0.3215]
[1757521681442,3.2078,4372.4,4372.3,0.7319]
[1757521681634,3.2078,4372.4,4372.3,1.14346]
[1757521682036,3.2078,4372.9,4372.8,0.206]
[1757521682239,3.4678,4372.9,4372.8,0.5275]
[1757521682440,7.4678,4372.9,4372.5,0.4402]
[1757521682742,7.4678,4372.9,4372.2,0.3215]
[1757521682941,3.2078,4372.3,4372.2,0.3215]
[1757521683241,3.4678,4372.3,4372.2,0.3215]
[1757521683541,3.4678,4372.3,4372.0,0.4402]
[1757521683738,3.4678,4372.3,4372.0,0.1187]
[1757521683932,0.26,4372.2,4372.1,0.206]
[1757521684139,3.2078,4372.3,4372.2,0.3215]
[1757521684340,3.4678,4372.3,4372.2,0.3215]
[1757521684538,3.4678,4372.3,4372.2,0.5275]
[1757521684733,3.2078,4372.3,4372.2,0.7319]
[1757521684934,3.4678,4372.3,4372.2,0.7319]
[1757521685936,3.2078,4372.3,4372.2,0.7319]
[1757521686137,3.4678,4372.3,4372.2,0.5275]
[1757521686346,3.4678,4372.3,4372.2,0.7319]
[1757521686745,3.2078,4372.3,4372.2,0.7319]
[1757521686946,3.4678,4372.3,4372.2,0.7319]
[1757521687145,0.26,4372.3,4372.2,0.7319]
[1757521687442,3.2078,4372.8,4372.2,0.5275]
[1757521687643,0.259,4372.7,4372.6,0.3215]
[1757521687839,0.259,4372.7,4372.6,0.206]
[1757521688044,3.2078,4372.8,4372.7,0.4104]
[1757521688243,4.1,4373.9,4372.7,0.4104]
[1757521688244,3.2078,4373.3,4373.0,0.1187]
[1757521688440,3.2078,4373.3,4373.2,0.7319]
[1757521688640,3.4668,4373.3,4373.2,0.7319]
[1757521689939,3.4668,4373.3,4373.2,0.5275]
[1757521690143,3.4668,4373.3,4373.2,0.3215]
[1757521691237,7.4668,4373.3,4373.0,0.1187]
[1757521691639,7.4668,4373.3,4373.1,0.3215]
[1757521691640,0.258,4373.2,4373.1,0.3215]
[1757521692345,0.258,4373.2,4373.0,0.1187]
[1757521692548,0.258,4373.2,4373.1,0.3215]
[1757521694950,0.258,4373.2,4373.0,0.1187]
[1757521695346,0.48667,4373.2,4372.6,0.3215]
[1757521695553,3.2078,4372.7,4372.5,0.1187]
[1757521695849,3.2078,4372.7,4372.6,0.3215]
[1757521696049,3.4658,4372.7,4372.6,0.3215]
[1757521696250,3.2078,4372.7,4372.6,0.3215]
[1757521696450,3.4648,4372.7,4372.6,0.5275]
[1757521696648,3.2078,4372.7,4372.6,0.5275]
[1757521696855,3.4648,4372.7,4372.6,0.7319]
[1757521701853,3.2078,4372.7,4372.6,0.7319]
[1757521702053,3.4638,4372.7,4372.6,0.7319]
[1757521703754,3.4638,4372.7,4372.6,0.5275]
[1757521704052,3.4638,4372.7,4372.6,0.3215]
[1757521705355,3.4638,4372.7,4372.6,0.5275]
[1757521705560,3.2078,4372.7,4372.6,0.7319]
[1757521705854,3.4628,4372.7,4372.6,0.7319]
[1757521706250,3.2078,4372.7,4372.6,0.7319]
[1757521706456,3.4628,4372.7,4372.6,0.7319]
[1757521708355,0.255,4372.7,4372.6,0.7319]
[1757521710757,0.255,4372.7,4372.5,0.1187]
[1757521710758,3.2078,4373.2,4373.1,0.721]
[1757521710960,3.4618,4373.2,4373.1,0.721]
[1757521711461,3.4618,4373.2,4373.1,0.2973]
[1757521712160,3.4618,4373.2,4373.1,0.506]
[1757521712360,3.4618,4373.2,4373.1,0.721]
[1757521714453,3.2078,4373.2,4373.1,0.721]
[1757521714654,3.4618,4373.2,4373.1,0.721]
[1757521714856,3.2078,4373.7,4373.6,0.506]
[1757521715057,3.4618,4373.7,4373.6,0.506]
[1757521716260,3.4618,4373.7,4373.6,0.721]
[1757521717363,3.2078,4373.7,4373.6,0.721]
[1757521717562,3.4608,4373.7,4373.6,0.721]
[1757521718554,0.253,4373.7,4373.6,0.721]
[1757521718858,3.2078,4374.2,4374.1,0.2973]
[1757521719057,3.4608,4374.2,4374.1,0.506]
[1757521719262,3.4608,4374.2,4374.1,0.721]
[1757521719860,3.2078,4374.2,4374.1,0.721]
[1757521720461,3.4608,4374.2,4374.1,0.721]
[1757521720864,3.2078,4374.8,4374.7,0.2087]
[1757521721065,3.4598,4374.8,4374.7,0.721]
[1757521721365,3.2078,4374.8,4374.7,0.721]
[1757521721661,3.4598,4374.8,4374.7,0.721]
[1757521721864,3.2078,4374.8,4374.7,0.721]
[1757521722068,3.4598,4374.8,4374.7,0.721]
[1757521722364,3.2078,4375.3,4374.7,0.721]
[1757521722569,3.2078,4375.3,4375.2,0.506]
[1757521722769,3.4598,4375.3,4375.2,0.506]
[1757521723361,3.2078,4375.3,4375.2,0.506]
[1757521723666,0.252,4375.3,4375.2,0.4237]
[1757521724169,0.252,4375.3,4375.2,0.721]
[1757521724373,3.2078,4375.8,4375.6,0.2973]
[1757521724558,3.2078,4375.8,4375.7,0.2973]
[1757521724764,3.4598,4375.8,4375.7,0.506]
[1757521724969,3.4598,4375.8,4375.7,0.2973]
[1757521725272,3.4598,4375.8,4375.7,0.506]
[1757521725969,3.4598,4375.8,4375.7,0.2973]
[1757521728169,3.4598,4375.8,4375.5,0.118]
[1757521728371,0.22854001,4375.7,4375.5,0.118]
[1757521728672,0.251,4375.6,4375.5,0.4153]
[1757521729173,4.22854001,4375.6,4375.0,0.4153]
[1757521729361,3.2078,4375.1,4375.0,0.4153]
[1757521729573,3.4588,4375.1,4375.0,0.4153]
[1757521730266,3.2078,4375.1,4375.0,0.4153]
[1757521730468,3.4588,4375.1,4375.0,0.4153]
[1757521730867,3.2078,4375.1,4375.0,0.4153]
[1757521731070,3.4588,4375.1,4375.0,0.4153]
[1757521731773,3.4588,4375.1,4375.0,0.118]
[1757521731972,3.2078,4375.1,4375.0,0.624]
[1757521732269,0.251,4375.1,4375.0,0.839]
[1757521732664,3.4588,4375.1,4375.0,0.118]
[1757521732879,3.4588,4375.1,4374.5,0.118]
[1757521732880,3.4588,4375.1,4374.7,0.2973]
[1757521733070,3.4588,4375.1,4374.5,0.118]
[1757521733071,3.2078,4375.1,4375.0,0.118]
[1757521733272,3.4588,4375.1,4375.0,0.4153]
[1757521733469,3.2078,4375.1,4375.0,0.4153]
[1757521734075,3.4588,4375.1,4375.0,0.4153]
[1757521734272,3.2078,4375.1,4375.0,0.624]
[1757521734467,3.4588,4375.1,4375.0,0.839]
[1757521734668,3.4578,4375.1,4375.0,0.839]
[1757521735474,3.4578,4375.1,4375.0,0.4153]
[1757521735670,3.4578,4375.1,4375.0,0.624]
[1757521736571,3.2078,4375.1,4375.0,0.4153]
[1757521736770,3.2078,4375.1,4375.0,0.8266]
[1757521736969,3.4578,4375.1,4375.0,0.8266]
[1757521737172,3.2078,4375.6,4375.0,0.8266]
[1757521737377,3.2078,4375.6,4375.5,0.6431]
[1757521737576,3.4578,4375.6,4375.5,0.4421]
[1757521738472,3.4578,4375.6,4375.5,0.118]
[1757521738674,7.4578,4375.6,4375.0,0.118]
[1757521738976,3.2078,4375.1,4375.0,0.4421]
[1757521739176,3.4578,4375.1,4375.0,0.4421]
[1757521739377,3.4578,4375.1,4375.0,0.118]
[1757521740381,3.4578,4375.1,4375.0,0.4421]
[1757521740970,3.4578,4375.1,4375.0,0.118]
[1757521741280,3.4578,4375.1,4375.0,0.4421]
[1757521741575,3.2078,4375.1,4375.0,0.8457]
[1757521741878,3.4568,4375.1,4375.0,0.8457]
[1757521742874,3.2078,4375.1,4375.0,0.8457]
[1757521743179,3.4568,4375.1,4375.0,0.8457]
[1757521744581,0.249,4375.1,4375.0,0.8457]
[1757521746182,3.2078,4375.7,4375.6,0.7277]
[1757521746383,3.4568,4375.7,4375.6,0.7277]
[1757521746883,3.2078,4375.7,4375.6,0.7277]
[1757521747082,3.4568,4375.7,4375.6,0.7277]
[1757521751081,3.2078,4375.7,4375.6,0.7277]
[1757521751284,4.1,4376.6,4376.1,0.3241]
[1757521751285,3.2078,4376.2,4376.1,0.3241]
[1757521751582,3.4558,4376.2,4376.1,0.3241]
[1757521752577,3.4558,4376.2,4376.1,0.5251]
[1757521752784,3.4558,4376.2,4376.1,0.7277]
[1757521753177,3.2078,4376.2,4376.1,0.7277]
[1757521753982,3.2078,4376.2,4376.1,0.5251]
[1757521754184,3.4558,4376.2,4376.1,0.5251]
[1757521754779,3.4558,4376.2,4376.1,0.7277]
[1757521755079,3.4548,4376.2,4376.1,0.7277]
[1757521755285,3.2078,4376.2,4376.1,0.7277]
[1757521755582,3.4548,4376.2,4376.1,0.7277]
[1757521757685,3.4548,4376.2,4376.1,1.1389]
[1757521758188,3.2078,4376.7,4376.6,0.7277]
[1757521758378,3.4548,4376.7,4376.6,0.7277]
[1757521759487,3.2078,4376.7,4376.6,0.7277]
[1757521759677,3.4548,4376.7,4376.6,0.7277]
[1757521760578,3.2078,4376.7,4376.6,0.7277]
[1757521760778,3.4548,4376.7,4376.6,0.7277]
[1757521764885,3.2078,4376.7,4376.6,0.7277]
[1757521765988,3.2078,4376.7,4376.6,1.13886]
[1757521766983,0.247,4376.9,4376.8,0.415]
[1757521767182,0.247,4376.9,4376.8,0.7317]
[1757521768188,36.1398,4377.3,4377.0,0.1269]
[1757521768388,0.247,4377.2,4377.1,0.3167]
[1757521768591,0.247,4377.2,4377.1,0.5321]
[1757521769790,36.1398,4377.3,4377.2,0.3167]
[1757521770093,36.3868,4377.3,4377.2,0.3167]
[1757521770992,36.3868,4377.3,4377.2,0.5321]
[1757521771290,3.4548,4377.3,4377.2,0.5321]
[1757521771791,3.4548,4377.3,4377.2,0.3167]
[1757521773584,3.4548,4377.3,4377.0,0.1269]
[1757521773585,3.4548,4377.3,4377.0,0.4436]
[1757521773786,3.4548,4377.3,4377.1,0.3167]
[1757521774086,3.4548,4377.3,4377.0,0.1269]
[1757521774292,0.247,4377.2,4377.1,0.3167]
[1757521777488,3.2078,4377.3,4377.1,0.2154]
[1757521777690,3.2078,4377.3,4377.2,0.5321]
[1757521777900,3.4548,4377.3,4377.2,0.5321]
[1757521779393,3.4548,4377.3,4377.2,0.3167]
[1757521782397,3.2078,4377.3,4377.2,0.7317]
[1757521782597,3.4548,4377.3,4377.2,0.7317]
[1757521782997,3.2078,4377.3,4377.2,0.7317]
[1757521783197,3.4548,4377.3,4377.2,0.7317]
[1757521784602,3.4548,4377.3,4377.2,0.3167]
[1757521786105,3.66191055,4377.3,4377.2,0.3167]
[1757521787904,3.41491055,4377.3,4377.2,0.3167]
[1757521788203,3.66191055,4377.3,4377.2,0.3167]
[1757521788708,3.41491055,4377.3,4377.2,0.3167]
[1757521788901,3.66191055,4377.3,4377.2,0.3167]
[1757521789607,3.66191055,4377.3,4377.2,0.5321]
[1757521789807,3.66191055,4377.3,4377.2,0.3167]
[1757521790606,4.2589609,4377.3,4377.0,0.4436]
[1757521790806,0.80412968,4377.2,4377.1,0.3167]
[1757521791006,1.05112968,4377.2,4377.1,0.3167]
[1757521792004,1.05112968,4377.2,4377.0,0.1269]
[1757521792212,0.20711055,4377.1,4377.0,0.1269]
[1757521792409,0.20711055,4377.1,4377.0,0.4436]
[1757521792609,0.80396142,4377.1,4377.0,0.1269]
[1757521792803,4.80396142,4377.1,4377.0,0.1269]
[1757521793007,4.80396142,4377.1,4376.7,1.414]
[1757521793310,3.2078,4376.8,4376.7,1.414]
[1757521793508,3.66191055,4376.8,4376.7,0.3167]
[1757521796014,3.66191055,4376.8,4376.5,0.118]
[1757521796213,3.66191055,4376.8,4376.6,0.3167]
[1757521796214,0.20711055,4376.7,4376.6,0.3167]
[1757521800214,0.80170075,4376.7,4376.6,0.3167]
[1757521800608,0.80170075,4376.7,4376.6,0.5321]
[1757521800913,0.80170075,4376.7,4376.6,0.3167]
[1757521801517,1.04870075,4376.7,4376.6,0.3167]
[1757521801710,1.04870075,4376.7,4376.6,0.5321]
[1757521802609,0.80170075,4376.7,4376.6,0.7314]
[1757521802813,3.2078,4376.8,4376.6,4.4147]
[1757521803012,2.8828,4376.8,4376.7,0.7222]
[1757521804416,3.1298,4376.8,4376.7,0.7222]
[1757521806916,2.2328,4376.8,4376.7,5.13335]
[1757521807124,3.2078,4377.3,4377.2,0.7222]
[1757521807320,3.4548,4377.3,4377.2,0.7222]
[1757521807512,4.1855,4377.3,4377.2,0.7222]
[1757521807813,4.3808617,4377.3,4377.2,0.5229]
[1757521808012,4.3808617,4377.3,4377.2,0.7222]
[1757521808208,3.8177617,4377.3,4377.2,0.7222]
[1757521808413,4.0647617,4377.3,4377.2,0.7222]
[1757521808612,3.658,4377.3,4377.2,0.7222]
[1757521809322,3.4548,4377.3,4377.2,0.7222]
[1757521810120,3.658,4377.3,4377.2,0.7222]
[1757521810324,4.1855,4377.3,4377.2,0.7222]
[1757521811516,4.38086734,4377.3,4377.2,0.7222]
[1757521811723,4.38086734,4377.3,4376.5,0.118]
[1757521811724,4.97939824,4377.3,4376.6,0.3075]
[1757521811922,0.3161,4376.6,4376.4,0.3075]
[1757521812236,0.7307,4376.4,4376.3,1.0968]
[1757521812524,0.92605629,4376.4,4376.3,1.6197]
[1757521813216,0.92605629,4376.4,4376.3,1.0968]
[1757521813524,0.92605629,4376.4,4375.1,0.3075]
[1757521813525,38.66497932,4376.4,4375.1,0.3075]
[1757521813822,3.2078,4375.2,4375.1,0.7222]
[1757521814022,4.24857932,4375.2,4375.1,0.7222]
[1757521814222,4.00157932,4375.2,4375.1,0.7222]
[1757521814527,4.24857932,4375.2,4375.1,0.7222]
[1757521814722,3.65015629,4375.2,4375.1,0.7222]
[1757521816430,3.6497676,4375.2,4375.1,0.7222]
[1757521817220,3.64969216,4375.2,4375.1,0.7222]
[1757521817620,3.64969216,4375.2,4375.1,0.3075]
[1757521817930,8.24659181,4375.2,4374.7,0.3075]
[1757521818131,0.79179181,4375.1,4374.7,0.3075]
[1757521818832,0.79179181,4375.1,4374.8,0.3075]
[1757521819031,0.79179181,4375.1,4375.0,0.4288]
[1757521819327,1.03779181,4375.1,4375.0,0.4288]
[1757521819733,5.03779181,4375.1,4375.0,0.1213]
[1757521820427,4.84289965,4375.1,4375.0,0.1213]
[1757521820632,5.03567995,4375.1,4374.0,0.1213]
[1757521820929,3.2078,4374.6,4374.5,0.4288]
[1757521821231,3.4538,4374.6,4374.5,0.4288]
[1757521821831,40.56743985,4374.6,4374.0,0.1213]
[1757521822022,3.2078,4374.1,4374.0,0.4288]
[1757521822230,3.4538,4374.1,4374.0,0.4288]
[1757521822428,3.4538,4374.1,4374.0,0.8435]
[1757521822826,3.2078,4374.1,4374.0,0.8435]
[1757521823225,3.4538,4374.1,4374.0,0.8435]
[1757521824227,3.4538,4374.1,4374.0,0.4288]
[1757521825828,3.4538,4374.1,4374.0,0.1213]
[1757521826031,3.4538,4374.1,4374.0,0.4288]
[1757521827129,3.4538,4374.1,4374.0,0.1213]
[1757521827432,3.4538,4374.1,4373.6,0.3041]
[1757521827933,3.4538,4374.1,4373.5,0.4254]
[1757521828233,3.2078,4373.6,4373.5,0.4254]
[1757521828432,3.4538,4373.6,4373.5,0.1213]
[1757521828628,3.4538,4373.6,4372.0,0.1295]
[1757521828629,7.4538,4373.6,4372.0,0.1295]
[1757521828934,3.2078,4372.6,4372.0,0.1295]
[1757521829129,3.4538,4372.6,4372.0,0.1295]
[1757521829329,3.2078,4372.6,4372.0,0.1295]
[1757521829532,3.4538,4372.6,4372.0,0.1295]
[1757521830334,3.2078,4372.1,4372.0,0.3357]
[1757521830634,3.4538,4372.1,4372.0,0.6398]
[1757521831535,3.4538,4372.1,4371.6,0.3041]
[1757521831732,3.4538,4372.1,4371.7,0.3041]
[1757521831935,3.4538,4372.1,4371.6,0.3041]
[1757521832132,3.2078,4372.1,4371.7,0.3041]
[1757521832430,3.2078,4372.1,4372.0,0.6398]
[1757521832632,3.4538,4372.1,4372.0,0.6398]
[1757521835937,3.2078,4372.1,4372.0,4.8493]
[1757521836141,3.2078,4372.7,4372.6,0.7198]
[1757521836437,3.4538,4372.7,4372.6,0.7198]
[1757521838627,3.4538,4372.7,4372.6,0.3041]
[1757521838832,3.4538,4372.7,4372.1,0.3041]
[1757521839032,3.2078,4372.2,4372.1,0.7198]
[1757521839233,3.4538,4372.2,4372.1,0.7198]
[1757521840337,3.4538,4372.2,4372.1,4.7198]
[1757521840736,3.2078,4372.7,4372.1,4.7198]
[1757521840937,3.2078,4372.7,4372.5,0.8493]
[1757521841135,0.246,4372.6,4372.5,0.8493]
[1757521841730,3.2078,4372.7,4372.5,0.5452]
[1757521841936,0.246,4372.6,4372.5,0.5452]
[1757521842538,0.246,4372.6,4372.5,0.8493]
[1757521843041,3.2078,4372.7,4372.6,0.3041]
[1757521843241,3.4538,4372.7,4372.6,0.7198]
[1757521843637,3.2078,4372.7,4372.6,4.7198]
[1757521845046,4.2043,4373.4,4373.3,0.7198]
[1757521846340,4.2043,4373.4,4372.9,0.3041]
[1757521846547,0.2153,4372.6,4372.5,4.0571]
[1757521846746,0.4613,4372.6,4372.5,4.0571]
[1757521846949,0.9965,4372.6,4372.5,0.7198]
[1757521847146,0.6719,4372.6,4372.5,0.7198]
[1757521847440,0.9965,4372.6,4372.5,0.7198]
[1757521848638,0.6719,4372.6,4372.5,0.8493]
[1757521849348,0.2153,4372.1,4372.0,0.5452]
[1757521849640,0.3246,4371.9,4371.5,3.3373]